fUSD/lending_fUSD_20240919
["ID","MTS","AMOUNT","RATE_DAILY","PERIOD"]
[338542731,1726726257782,-288.63631856,0.00013715,2]
[338542732,1726726257792,-583.52,0.00013715,2]
[338542733,1726726257801,-500.0,0.00013715,2]
[338542734,1726726257810,-2984.99,0.00013715,2]
[338542735,1726726257819,-4554.46,0.00013715,2]
[338542736,1726726257828,-500.0,0.00013715,2]
[338542737,1726726257837,-1342.15,0.00013715,2]
[338542738,1726726257847,-428.86,0.00013715,2]
[338542739,1726726257865,-558.56,0.00013715,2]
[338542740,1726726257874,-2868.83,0.00013715,2]
[338542741,1726726257884,-3490.59,0.00013715,2]
[338542742,1726726257893,-960.58,0.00013715,2]
[338542743,1726726257902,-1259.38,0.00013715,2]
[338542744,1726726257911,-500.0,0.00013715,2]
[338542745,1726726257920,-500.0,0.00013715,2]
[338542746,1726726257929,-951.69,0.00013715,2]
[338542747,1726726257939,-500.0,0.00013715,2]
[338542748,1726726257948,-561.86,0.00013715,2]
[338542749,1726726257956,-8000.47,0.00013715,2]
[338542750,1726726257965,-828.93,0.00013715,2]
[338542751,1726726257975,-876.65,0.00013715,2]
[338542752,1726726257984,-4940.81,0.00013715,2]
[338542753,1726726257993,-500.0,0.00013715,2]
[338542754,1726726258002,-500.0,0.00013715,2]
[338542755,1726726258012,-875.12,0.00013715,2]
[338542756,1726726258021,-1531.27,0.00013715,2]
[338542757,1726726258031,-1045.53,0.00013715,2]
[338542758,1726726258041,-4934.78,0.00013715,2]
[338542759,1726726258051,-1968.35,0.00013715,2]
[338542760,1726726258060,-500.0,0.00013715,2]
[338542761,1726726258069,-500.0,0.00013715,2]
[338542762,1726726258079,-527.69,0.00013715,2]
[338542763,1726726258088,-818.34,0.00013715,2]
[338542764,1726726258105,-500.0,0.00013715,2]
[338542765,1726726258114,-3041.37,0.00013715,2]
[338542766,1726726258123,-633.53,0.00013715,2]
[338542767,1726726258132,-1306.46,0.00013715,2]
[338542768,1726726258142,-1697.53,0.00013715,2]
[338542769,1726726258151,-500.0,0.00013715,2]
[338542770,1726726258160,-2855.41,0.00013715,2]
[338542771,1726726258170,-500.0,0.00013715,2]
[338542772,1726726258181,-1051.76,0.00013715,2]
[338542773,1726726258191,-1066.5,0.00013715,2]
[338542774,1726726258200,-1339.52,0.00013715,2]
[338542775,1726726258209,-151.0,0.00013715,2]
[338542776,1726726258218,-2356.18,0.00013715,2]
[338542777,1726726258228,-1765.06,0.00013715,2]
[338542778,1726726258237,-506.17,0.00013715,2]
[338542779,1726726258247,-1423.16,0.00013715,2]
[338542780,1726726258257,-823.48,0.00013715,2]
[338542781,1726726258267,-500.0,0.00013715,2]
[338542782,1726726258277,-946.52,0.00013715,2]
[338542783,1726726258287,-500.0,0.00013715,2]
[338542784,1726726258296,-2012.58,0.00013715,2]
[338542785,1726726258305,-500.0,0.00013715,2]
[338542786,1726726258315,-673.3,0.00013715,2]
[338542787,1726726258324,-500.0,0.00013715,2]
[338542788,1726726258334,-500.0,0.00013715,2]
[338542789,1726726258343,-643.32,0.00013715,2]
[338542790,1726726258354,-2978.69,0.00013715,2]
[338542791,1726726258363,-693.84,0.00013715,2]
[338542792,1726726258485,-633.05,0.00013715,2]
[338542793,1726726258495,-1806.23,0.00013715,2]
[338542794,1726726258504,-1203.55,0.00013715,2]
[338542795,1726726258513,-878.4,0.00013715,2]
[338542796,1726726258523,-518.32,0.00013715,2]
[338542797,1726726258532,-3072.66,0.00013715,2]
[338542798,1726726258541,-1000.0,0.00013715,2]
[338542799,1726726258551,-579.58,0.00013715,2]
[338542800,1726726258560,-1413.6,0.00013715,2]
[338542801,1726726258570,-652.59,0.00013715,2]
[338542802,1726726258579,-1726.39,0.00013715,2]
[338542803,1726726258589,-500.0,0.00013715,2]
[338542804,1726726258599,-501.17,0.00013715,2]
[338542805,1726726258609,-1146.17,0.00013715,2]
[338542806,1726726258618,-934.67497805,0.00013715,2]
[338542807,1726726258645,-856.90502195,0.00013715,2]
[338542808,1726726258655,-650.6727017,0.00013715,2]
[338542809,1726726258668,-352.49199407,0.00013715,2]
[338542810,1726726258679,-689.41674097,0.00013715,2]
[338542811,1726726258690,-501.75856326,0.00013715,2]
[338542812,1726726258700,-1031.8,0.00013715,2]
[338542813,1726726258710,-1020.12,0.00013715,2]
[338542814,1726726258720,-859.05,0.00013715,2]
[338542815,1726726258731,-464.16162126,0.00013716,2]
[338542816,1726726258744,-35.83837874,0.00013716,2]
[338542817,1726726258755,-1311.15,0.00013716,2]
[338542818,1726726258764,-725.52,0.00013716,2]
[338542819,1726726258774,-1025.01,0.00013716,2]
[338542820,1726726258784,-500.0,0.00013716,2]
[338542821,1726726258793,-1155.69,0.00013716,2]
[338542822,1726726258803,-999.15,0.00013716,2]
[338542823,1726726258812,-500.0,0.00013716,2]
[338542824,1726726258822,-500.0,0.00013716,2]
[338542825,1726726258832,-1678.98,0.00013716,2]
[338542826,1726726258842,-500.0,0.00013716,2]
[338542827,1726726258852,-629.03,0.00013716,2]
[338542828,1726726258861,-500.0,0.00013716,2]
[338542829,1726726258871,-171.46120508,0.00013716,2]
[338542830,1726726258882,-1128.06879492,0.00013716,2]
[338542831,1726726258892,-897.93,0.00013716,2]
[338542832,1726726258902,-500.0,0.00013716,2]
[338542833,1726726258912,-368.28017768,0.00013716,2]
[338542834,1726726258924,-15.24423948,0.00013716,2]
[338542835,1726726258933,-1690.14,0.00013716,2]
[338542836,1726726258943,-625.51,0.00013716,2]
[338542837,1726726258952,-500.0,0.00013716,2]
[338542838,1726726258962,-315.89956052,0.00013716,2]
[338542839,1726726258974,-1115.59043948,0.00013716,2]
[338542840,1726726258984,-559.2,0.00013716,2]
[338542841,1726726258994,-500.0,0.00013716,2]
[338542842,1726726259003,-500.0,0.00013716,2]
[338542843,1726726259013,-197.6223329,0.00013716,2]
[338542844,1726726259022,-66.93176193,0.00013716,2]
[338542845,1726726259033,-433.06823807,0.00013716,2]
[338542846,1726726259043,-500.0,0.00013716,2]
[338542847,1726726259052,-797.44,0.00013716,2]
[338542848,1726726259062,-887.76,0.00013716,2]
[338542849,1726726259071,-711.73,0.00013716,2]
[338542850,1726726259081,-500.0,0.00013716,2]
[338542851,1726726259090,-343.46627016,0.00013716,2]
[338542852,1726726259101,-634.81739027,0.00013716,2]
[338542853,1726726259112,-577.66,0.00013716,2]
[338542854,1726726259122,-500.97,0.00013716,2]
[338542855,1726726259131,-500.0,0.00013716,2]
[338542856,1726726259141,-581.11,0.00013716,2]
[338542857,1726726259151,-1206.87,0.00013716,2]
[338542858,1726726259160,-623.23,0.00013716,2]
[338542859,1726726259170,-685.27,0.00013716,2]
[338542860,1726726259180,-1068.24,0.00013716,2]
[338542861,1726726259190,-959.9,0.00013716,2]
[338542862,1726726259200,-708.41,0.00013716,2]
[338542863,1726726259210,-500.0,0.00013716,2]
[338542864,1726726259220,-527.3,0.00013716,2]
[338542865,1726726259230,-500.0,0.00013716,2]
[338542866,1726726259240,-500.0,0.00013716,2]
[338542867,1726726259250,-500.0,0.00013716,2]
[338542868,1726726259260,-500.0,0.00013716,2]
[338542869,1726726259270,-1428.06,0.00013716,2]
[338542870,1726726259279,-500.0,0.00013716,2]
[338542871,1726726259289,-500.0,0.00013716,2]
[338542872,1726726259299,-252.74282889,0.00013716,2]
[338542873,1726726259308,-500.0,0.00013716,2]
[338542874,1726726259320,-684.88,0.00013716,2]
[338542875,1726726259329,-513.79,0.00013716,2]
[338542876,1726726259339,-1390.29,0.00013716,2]
[338542877,1726726259348,-500.0,0.00013716,2]
[338542878,1726726259358,-463.49651437,0.00013716,2]
[338542879,1726726259370,-36.50348563,0.00013716,2]
[338542880,1726726259379,-500.0,0.00013716,2]
[338542881,1726726259389,-500.0,0.00013716,2]
[338542882,1726726259399,-1280.76,0.00013716,2]
[338542883,1726726259408,-517.94,0.00013716,2]
[338542884,1726726259417,-500.0,0.00013716,2]
[338542885,1726726259426,-500.0,0.00013716,2]
[338542886,1726726259435,-1027.37,0.00013716,2]
[338542887,1726726259445,-1105.03,0.00013716,2]
[338542888,1726726259454,-583.41,0.00013716,2]
[338542889,1726726259463,-500.0,0.00013716,2]
[338542890,1726726259473,-500.0,0.00013716,2]
[338542891,1726726259483,-641.74,0.00013716,2]
[338542892,1726726259492,-584.79,0.00013716,2]
[338542893,1726726259502,-500.0,0.00013716,2]
[338542894,1726726259512,-500.0,0.00013716,2]
[338542895,1726726259522,-500.0,0.00013716,2]
[338542896,1726726259531,-1531.72,0.00013716,2]
[338542897,1726726259540,-500.0,0.00013716,2]
[338542898,1726726259550,-617.17,0.00013716,2]
[338542899,1726726259560,-610.62,0.00013716,2]
[338542900,1726726259570,-500.0,0.00013716,2]
[338542901,1726726259579,-1930.85,0.00013716,2]
[338542902,1726726259589,-859.98,0.00013716,2]
[338542903,1726726259598,-676.16,0.00013716,2]
[338542904,1726726259609,-808.39,0.00013716,2]
[338542905,1726726259619,-1043.04,0.00013716,2]
[338542906,1726726259628,-691.41299012,0.00013716,2]
[338542907,1726726259641,-41.18700988,0.00013716,2]
[338542908,1726726259651,-500.0,0.00013716,2]
[338542909,1726726259660,-526.12,0.00013716,2]
[338542910,1726726259670,-151.0,0.00013716,2]
[338542911,1726726259680,-479.73269934,0.00013716,2]
[338542912,1726726259692,-509.15730066,0.00013716,2]
[338542913,1726726259701,-1108.54,0.00013716,2]
[338542914,1726726259711,-364.42785256,0.00013716,2]
[338542915,1726726259720,-1072.8,0.00013716,2]
[338542916,1726726259729,-481.05296968,0.00013716,2]
[338542917,1726726259738,-1140.61,0.00013716,2]
[338542918,1726726259748,-500.0,0.00013716,2]
[338542919,1726726259757,-664.19,0.00013716,2]
[338542920,1726726259767,-1101.06,0.00013716,2]
[338542921,1726726259776,-500.0,0.00013716,2]
[338542922,1726726259786,-500.0,0.00013716,2]
[338542923,1726726259796,-934.84,0.00013716,2]
[338542924,1726726259805,-966.26,0.00013716,2]
[338542925,1726726259815,-1172.45,0.00013716,2]
[338542926,1726726259824,-157.754733,0.00013716,2]
[338542927,1726726259833,-881.73,0.00013716,2]
[338542928,1726726259843,-1961.74,0.00013716,2]
[338542929,1726726259852,-901.42,0.00013716,2]
[338542930,1726726259861,-500.0,0.00013716,2]
[338542931,1726726259871,-1876.29,0.00013716,2]
[338542932,1726726259880,-500.0,0.00013716,2]
[338542933,1726726259890,-882.04,0.00013716,2]
[338542934,1726726259899,-500.0,0.00013716,2]
[338542935,1726726259908,-500.0,0.00013716,2]
[338542936,1726726259918,-519.1,0.00013716,2]
[338542937,1726726259927,-227.26897841,0.00013716,2]
[338542938,1726726259937,-1138.27,0.00013716,2]
[338542939,1726726259946,-500.0,0.00013716,2]
[338542940,1726726259956,-500.0,0.00013716,2]
[338542941,1726726259965,-2184.95,0.00013716,2]
[338542942,1726726259974,-934.45912664,0.00013716,2]
[338542943,1726726259986,-328.69087336,0.00013716,2]
[338542944,1726726259995,-336.07492664,0.00013716,2]
[338542945,1726726260007,-163.92507336,0.00013716,2]
[338542946,1726726260016,-527.14,0.00013716,2]
[338542947,1726726260026,-711.28,0.00013716,2]
[338542948,1726726260036,-500.0,0.00013716,2]
[338542949,1726726260045,-1885.04,0.00013716,2]
[338542950,1726726260055,-500.0,0.00013716,2]
[338542951,1726726260066,-500.0,0.00013716,2]
[338542952,1726726260077,-1029.76,0.00013716,2]
[338542953,1726726260087,-569.29,0.00013716,2]
[338542954,1726726260097,-500.0,0.00013716,2]
[338542955,1726726260115,-500.0,0.00013716,2]
[338542956,1726726260124,-658.37,0.00013716,2]
[338542957,1726726260134,-1732.59619731,0.00013716,2]
[338542958,1726726260146,-1107.2408442,0.00013716,2]
[338542959,1726726260160,-871.28295849,0.00013716,2]
[338542960,1726726260169,-860.39,0.00013716,2]
[338542961,1726726260179,-500.0,0.00013716,2]
[338542962,1726726260189,-500.0,0.00013716,2]
[338542963,1726726260199,-556.76,0.00013716,2]
[338542964,1726726260209,-535.41,0.00013716,2]
[338542965,1726726260218,-500.0,0.00013716,2]
[338542966,1726726260228,-500.0,0.00013716,2]
[338542967,1726726260238,-1868.78,0.00013716,2]
[338542968,1726726260248,-500.0,0.00013716,2]
[338542969,1726726260257,-4272.35,0.00013716,2]
[338542970,1726726260267,-500.0,0.00013716,2]
[338542971,1726726260277,-2367.01,0.00013716,2]
[338542972,1726726260286,-634.18247404,0.00013716,2]
[338542973,1726726260296,-827.37,0.00013716,2]
[338542974,1726726260305,-3383.73654258,0.00013716,2]
[338542975,1726726260317,-1356.88345742,0.00013716,2]
[338542976,1726726260327,-151.0,0.00013716,2]
[338542977,1726726260336,-500.0,0.00013716,2]
[338542978,1726726260346,-644.61,0.00013716,2]
[338542979,1726726260356,-1582.0,0.00013716,2]
[338542980,1726726260365,-760.94,0.00013716,2]
[338542981,1726726260375,-662.73,0.00013716,2]
[338542982,1726726260385,-500.0,0.00013716,2]
[338542983,1726726260394,-500.0,0.00013716,2]
[338542984,1726726260404,-1516.71,0.00013716,2]
[338542985,1726726260413,-500.0,0.00013716,2]
[338542986,1726726260423,-934.335038,0.00013716,2]
[338542987,1726726260433,-1763.84,0.00013716,2]
[338542988,1726726260443,-500.0,0.00013716,2]
[338542989,1726726260453,-1565.25,0.00013716,2]
[338542990,1726726260462,-500.0,0.00013716,2]
[338542991,1726726260472,-630.07,0.00013716,2]
[338542992,1726726260481,-500.0,0.00013716,2]
[338542993,1726726260490,-151.0,0.00013716,2]
[338542994,1726726260500,-500.0,0.00013716,2]
[338542995,1726726260509,-500.0,0.00013716,2]
[338542996,1726726260519,-500.0,0.00013716,2]
[338542997,1726726260529,-737.0,0.00013716,2]
[338542998,1726726260538,-282.51676649,0.00013716,2]
[338542999,1726726260548,-1390.69,0.00013716,2]
[338543000,1726726260557,-500.0,0.00013716,2]
[338543001,1726726260567,-935.35,0.00013716,2]
[338543002,1726726260577,-500.0,0.00013716,2]
[338543003,1726726260586,-228.97227221,0.00013716,2]
[338543004,1726726260598,-271.02772779,0.00013716,2]
[338543005,1726726260889,-808.16838907,0.00013716,2]
[338543006,1726726261117,-141.93161093,0.00013716,2]
[338543007,1726726261128,-170.97838907,0.00013716,2]
[338543008,1726726261142,-453.04161093,0.00013716,2]
[338543009,1726726261152,-5538.17,0.00013716,2]
[338543010,1726726261162,-862.82,0.00013716,2]
[338543011,1726726261172,-151.0,0.00013716,2]
[338543012,1726726261183,-2060.05,0.00013716,2]
[338543013,1726726261194,-500.0,0.00013716,2]
[338543014,1726726261203,-1787.23,0.00013716,2]
[338543015,1726726261213,-644.69,0.00013716,2]
[338543016,1726726261223,-768.85,0.00013716,2]
[338543017,1726726261233,-3039.04,0.00013716,2]
[338543018,1726726261243,-1823.86,0.00013716,2]
[338543019,1726726261253,-500.0,0.00013716,2]
[338543020,1726726261263,-500.0,0.00013716,2]
[338543021,1726726261273,-2159.79,0.00013716,2]
[338543022,1726726261285,-500.0,0.00013716,2]
[338543023,1726726261295,-1118.45,0.00013716,2]
[338543024,1726726261305,-500.0,0.00013716,2]
[338543025,1726726261315,-500.0,0.00013716,2]
[338543026,1726726261325,-1123.15091618,0.00013716,2]
[338543027,1726726261793,-2142.60908382,0.00013716,2]
[338543028,1726726261803,-500.0,0.00013716,2]
[338543029,1726726261813,-3331.94,0.00013716,2]
[338543030,1726726261823,-500.0,0.00013716,2]
[338543031,1726726261833,-806.59,0.00013716,2]
[338543032,1726726261844,-500.0,0.00013716,2]
[338543033,1726726261855,-3132.86,0.00013716,2]
[338543034,1726726261864,-630.58,0.00013716,2]
[338543035,1726726261874,-1453.42,0.00013716,2]
[338543036,1726726261884,-878.15,0.00013716,2]
[338543037,1726726261894,-181.4968725,0.00013716,2]
[338543038,1726726261903,-500.0,0.00013716,2]
[338543039,1726726261913,-1061.58,0.00013716,2]
[338543040,1726726261923,-164.786615,0.00013716,2]
[338543041,1726726261933,-500.0,0.00013716,2]
[338543042,1726726261943,-500.0,0.00013716,2]
[338543043,1726726261953,-1028.91,0.00013716,2]
[338543044,1726726261962,-500.0,0.00013716,2]
[338543045,1726726261972,-500.0,0.00013716,2]
[338543046,1726726261982,-500.0,0.00013716,2]
[338543047,1726726261992,-500.0,0.00013716,2]
[338543048,1726726262002,-500.0,0.00013716,2]
[338543049,1726726262012,-989.29,0.00013716,2]
[338543050,1726726262022,-500.0,0.00013716,2]
[338543051,1726726262032,-500.0,0.00013716,2]
[338543052,1726726262042,-462.39063769,0.00013716,2]
[338543053,1726726262052,-500.0,0.00013716,2]
[338543054,1726726262062,-500.0,0.00013717,2]
[338543055,1726726262071,-151.0,0.00013717,2]
[338543056,1726726262080,-802.51,0.00013717,2]
[338543057,1726726262090,-815.7,0.00013717,2]
[338543058,1726726262101,-1292.07,0.00013717,2]
[338543059,1726726262112,-500.0,0.00013717,2]
[338543060,1726726262122,-521.87,0.00013717,2]
[338543061,1726726262132,-500.0,0.00013717,2]
[338543062,1726726262143,-858.77,0.00013717,2]
[338543063,1726726262152,-500.0,0.00013717,2]
[338543064,1726726262162,-500.0,0.00013717,2]
[338543065,1726726262173,-613.1,0.00013717,2]
[338543066,1726726262183,-500.0,0.00013717,2]
[338543067,1726726262192,-500.0,0.00013717,2]
[338543068,1726726262204,-500.0,0.00013717,2]
[338543069,1726726262214,-500.0,0.00013717,2]
[338543070,1726726262223,-599.1,0.00013717,2]
[338543071,1726726262233,-500.0,0.00013717,2]
[338543072,1726726262243,-654.52,0.00013717,2]
[338543073,1726726262253,-535.80704895,0.00013717,2]
[338543074,1726726262262,-500.0,0.00013717,2]
[338543075,1726726262271,-500.0,0.00013717,2]
[338543076,1726726262281,-983.99,0.00013717,2]
[338543077,1726726262290,-500.0,0.00013717,2]
[338543078,1726726262300,-500.0,0.00013717,2]
[338543079,1726726262310,-500.0,0.00013717,2]
[338543080,1726726262319,-500.0,0.00013717,2]
[338543081,1726726262329,-751.25,0.00013717,2]
[338543082,1726726262338,-500.0,0.00013717,2]
[338543083,1726726262347,-500.0,0.00013717,2]
[338543084,1726726262357,-500.0,0.00013717,2]
[338543085,1726726262366,-500.0,0.00013717,2]
[338543086,1726726262376,-500.0,0.00013717,2]
[338543087,1726726262386,-897.92,0.00013717,2]
[338543088,1726726262396,-2171.2,0.00013717,2]
[338543089,1726726262406,-1976.64,0.00013717,2]
[338543090,1726726262416,-1541.26,0.00013717,2]
[338543091,1726726262425,-978.64,0.00013717,2]
[338543092,1726726262435,-500.0,0.00013717,2]
[338543093,1726726262444,-758.56,0.00013717,2]
[338543094,1726726262454,-972.65,0.00013717,2]
[338543095,1726726262463,-500.0,0.00013717,2]
[338543096,1726726262473,-699.78,0.00013717,2]
[338543097,1726726262482,-500.0,0.00013717,2]
[338543098,1726726262491,-810.75,0.00013717,2]
[338543099,1726726262500,-589.94,0.00013717,2]
[338543100,1726726262510,-500.0,0.00013717,2]
[338543101,1726726262520,-731.77,0.00013717,2]
[338543102,1726726262530,-737.47,0.00013717,2]
[338543103,1726726262539,-500.0,0.00013717,2]
[338543104,1726726262549,-875.32,0.00013717,2]
[338543105,1726726262558,-404.91555333,0.00013717,2]
[338543106,1726726262568,-2108.54500636,0.00013729,2]
[338543107,1726726262577,-151.0,0.000138,2]
[338543108,1726726262587,-151.0,0.000138,2]
[338543109,1726726262596,-179507.4616414,0.000138,2]
[338543110,1726726262609,-1595.41732748,0.000138,2]
[338543111,1726726262620,-656.14,0.000138,2]
[338543112,1726726262632,-539.06283141,0.000138,2]
[338543113,1726726262643,-828.75769103,0.000138,2]
[338543114,1726726262654,-82863.14316068,0.000138,2]
[338543115,1726726262663,-607.605334,0.000139,2]
[338543116,1726726262673,-996.5,0.000139,2]
[338543117,1726726262683,-174.17734118,0.000139,2]
[338543118,1726726262692,-151.0,0.000139,2]
[338543119,1726726262701,-281685.34351686,0.000139,2]
[338543120,1726726262789,-12591.06526114,0.000139,2]
[338543121,1726726262798,-2108.54500636,0.00013964,2]
[338543122,1726726262807,-4213.96,0.00013988,2]
[338543123,1726726262817,-5371.56,0.00013988,2]
[338543124,1726726262826,-1044.14,0.00013988,2]
[338543125,1726726262835,-3226.68,0.00013988,2]
[338543126,1726726262845,-2003.73,0.00013988,2]
[338543127,1726726262854,-4301.42,0.00013988,2]
[338543128,1726726262864,-637.47,0.00013988,2]
[338543129,1726726262874,-2699.44,0.00013988,2]
[338543130,1726726262883,-2303.97722394,0.00013988,2]
[338543131,1726726262894,-1273.16277606,0.00013988,2]
[338543132,1726726262903,-3334.9491041,0.00013988,2]
[338543133,1726726262915,-1083.32602541,0.00013988,2]
[338543134,1726726262925,-1942.37721319,0.00013988,2]
[338543135,1726726263945,-700.751278,0.00013,2]
[338543136,1726726263956,-3280.3876573,0.00013988,2]
[338543137,1726726263966,-915.94,0.00013988,2]
[338543138,1726726263976,-500.0,0.00013988,2]
[338543139,1726726263986,-4637.00953564,0.00013988,2]
[338543140,1726726263997,-1671.26046436,0.00013988,2]
[338543141,1726726264007,-4131.7,0.00013988,2]
[338543142,1726726264017,-1347.94,0.00013988,2]
[338543143,1726726264030,-1656.47,0.00013988,2]
[338543144,1726726264042,-2762.8,0.00013988,2]
[338543145,1726726264056,-603.23,0.00013988,2]
[338543146,1726726264068,-1185.65,0.00013988,2]
[338543147,1726726264080,-505.53,0.00013988,2]
[338543148,1726726264091,-2674.11,0.00013988,2]
[338543149,1726726264105,-371.88521979,0.00013988,2]
[338543150,1726726264121,-237.99478021,0.00013988,2]
[338543151,1726726264133,-500.0,0.00013988,2]
[338543152,1726726264147,-200.48399341,0.00013988,2]
[338543153,1726726264162,-544.47600659,0.00013988,2]
[338543154,1726726264175,-276.93002641,0.00013988,2]
[338543155,1726726264193,-589.67997359,0.00013988,2]
[338543156,1726726264207,-614.78,0.00013988,2]
[338543157,1726726264220,-37.09233589,0.00013988,2]
[338543158,1726726264234,-621.19,0.00013988,2]
[338543159,1726726264248,-317.96766411,0.00013988,2]
[338543160,1726726264259,-828.85599774,0.00013988,2]
[338543161,1726726264273,-369.12270208,0.00013988,2]
[338543162,1726726264287,-2524.00130018,0.00013988,2]
[338543163,1726726264300,-151.0,0.00013989,2]
[338543164,1726726264312,-500.0,0.00013989,2]
[338543165,1726726264323,-500.0,0.00013989,2]
[338543166,1726726264334,-500.0,0.00013989,2]
[338543167,1726726264344,-500.0,0.00013989,2]
[338543168,1726726264355,-406.84870107,0.00013989,2]
[338543169,1726726264370,-93.15129893,0.00013989,2]
[338543170,1726726264382,-500.0,0.00013989,2]
[338543171,1726726264394,-512.57,0.00013989,2]
[338543172,1726726264406,-59.1855262,0.00013989,2]
[338543173,1726726264420,-440.8144738,0.00013989,2]
[338543174,1726726264432,-558.96,0.00013989,2]
[338543175,1726726264445,-2161.61,0.00013989,2]
[338543176,1726726264458,-152.22463916,0.00013989,2]
[338543177,1726726264473,-361.6920653,0.00013989,2]
[338543178,1726726264487,-72.62329554,0.00013989,2]
[338543179,1726726264497,-634.58,0.00013989,2]
[338543180,1726726264507,-1310.5,0.00013989,2]
[338543181,1726726264518,-1721.59,0.00013989,2]
[338543182,1726726264529,-775.65,0.00013989,2]
[338543183,1726726264540,-857.42,0.00013989,2]
[338543184,1726726264553,-500.0,0.00013989,2]
[338543185,1726726264565,-2270.05,0.00013989,2]
[338543186,1726726264576,-2169.17,0.00013989,2]
[338543187,1726726264586,-155.48554323,0.00013989,2]
[338543188,1726726264601,-1039.25445677,0.00013989,2]
[338543189,1726726264613,-424.80960869,0.00013989,2]
[338543190,1726726264663,-75.19039131,0.00013989,2]
[338543191,1726726264674,-428.00111282,0.00013989,2]
[338543192,1726726264693,-71.99888718,0.00013989,2]
[338543193,1726726264703,-500.0,0.00013989,2]
[338543194,1726726264714,-711.09695311,0.00013989,2]
[338543195,1726726264729,-23.92304689,0.00013989,2]
[338543196,1726726264740,-500.0,0.00013989,2]
[338543197,1726726264751,-233.93336388,0.00013989,2]
[338543198,1726726264816,-270.37663612,0.00013989,2]
[338543199,1726726264827,-1461.89836388,0.00013989,2]
[338543200,1726726264854,-78.74163612,0.00013989,2]
[338543201,1726726264866,-500.0,0.00013989,2]
[338543202,1726726264877,-262.78307638,0.00013989,2]
[338543203,1726726264890,-567.63859501,0.00013989,2]
[338543204,1726726265236,-2695.89832861,0.00013989,2]
[338543205,1726726265247,-1017.05,0.00013989,2]
[338543206,1726726265258,-967.26,0.00013989,2]
[338543207,1726726265269,-743.3,0.00013989,2]
[338543208,1726726265280,-500.0,0.00013989,2]
[338543209,1726726265290,-974.23690833,0.00013989,2]
[338543210,1726726265303,-382.12258582,0.00013989,2]
[338543211,1726726265316,-46.41050585,0.00013989,2]
[338543212,1726726265327,-500.0,0.00013989,2]
[338543213,1726726265338,-500.0,0.00013989,2]
[338543214,1726726265349,-2438.56,0.00013989,2]
[338543215,1726726265360,-1199.42,0.00013989,2]
[338543216,1726726265370,-1805.28,0.00013989,2]
[338543217,1726726265381,-500.0,0.00013989,2]
[338543218,1726726265391,-544.81,0.00013989,2]
[338543219,1726726265401,-562.56,0.00013989,2]
[338543220,1726726265412,-1458.08,0.00013989,2]
[338543221,1726726265422,-532.66,0.00013989,2]
[338543222,1726726265433,-526.98,0.00013989,2]
[338543223,1726726265443,-500.0,0.00013989,2]
[338543224,1726726265453,-500.0,0.00013989,2]
[338543225,1726726265463,-542.11,0.00013989,2]
[338543226,1726726265474,-500.0,0.00013989,2]
[338543227,1726726265484,-1725.83,0.00013989,2]
[338543228,1726726265494,-947.81,0.00013989,2]
[338543229,1726726265505,-959.06,0.00013989,2]
[338543230,1726726265515,-1438.42,0.00013989,2]